bitfinex-derivatives/quotes_BTCF0:USTF0_20241223
["timestamp","ask_amount","ask_price","bid_price","bid_amount"]
[1734980962542,0.053678,93291.0,93286.0,0.053681]
[1734980962737,0.46798285,93299.0,93281.0,0.3608]
[1734980962930,0.053682,93285.0,93281.0,0.3608]
[1734980963137,0.053684,93282.0,93281.0,0.2874]
[1734980963331,0.3608,93291.0,93276.0,0.053687]
[1734980963536,0.053684,93282.0,93276.0,0.053687]
[1734980964042,0.3608,93291.0,93270.0,0.49642301]
[1734980964043,0.053684,93281.0,93272.0,0.053689]
[1734980964430,0.16088639,93281.0,93272.0,0.053689]
[1734980964637,0.053684,93281.0,93277.0,0.01378936]
[1734980964835,0.10720411,93280.0,93277.0,0.01378936]
[1734980966338,0.10720411,93280.0,93278.0,0.053686]
[1734980966539,0.10720411,93280.0,93279.0,1.50160773]
[1734980967536,0.10720411,93280.0,93279.0,0.00160773]
[1734980967537,0.10820411,93280.0,93279.0,0.00160773]
[1734980967937,0.34910411,93280.0,93279.0,0.00160773]
[1734980968141,0.34810411,93280.0,93279.0,0.00160773]
[1734980968448,0.35010411,93280.0,93279.0,0.00160773]
[1734980968643,0.10920411,93280.0,93279.0,0.00160773]
[1734980968847,0.002,93280.0,93279.0,0.00160773]
[1734980969048,0.10920469,93280.0,93279.0,0.00160773]
[1734980969640,0.10720469,93280.0,93279.0,0.00160773]
[1734980969834,0.11020469,93280.0,93279.0,0.00160773]
[1734980970041,0.11020469,93280.0,93279.0,0.01544935]
[1734980970236,0.11020469,93280.0,93279.0,0.00160773]
[1734980970438,0.10720469,93280.0,93279.0,0.00160773]
[1734980970643,0.10820469,93280.0,93279.0,0.00160773]
[1734980971149,0.10820469,93280.0,93279.0,1.50160773]
[1734980971348,0.11020469,93280.0,93279.0,1.50160773]
[1734980973241,0.10920469,93280.0,93270.0,0.37473625]
[1734980973444,0.3608,93271.0,93270.0,0.01393625]
[1734980973646,0.3608,93271.0,93261.0,0.3608]
[1734980973837,0.053695,93263.0,93260.0,0.3608]
[1734980974043,0.053697,93260.0,93254.0,0.26236954]
[1734980974243,0.053697,93260.0,93259.0,1.5]
[1734980974655,0.16092755,93260.0,93259.0,1.5]
[1734980975151,0.10723055,93260.0,93259.0,1.5]
[1734980975451,0.3608,93274.0,93259.0,1.5]
[1734980975838,0.05369,93272.0,93259.0,1.8608]
[1734980976043,0.10722768,93273.0,93259.0,1.8608]
[1734980976351,0.3608,93274.0,93259.0,1.8608]
[1734980976352,0.053694,93264.0,93259.0,1.8618]
[1734980977351,0.053696,93261.0,93259.0,1.8618]
[1734980977950,0.053696,93260.0,93259.0,1.8608]
[1734980978252,0.053696,93260.0,93259.0,1.8618]
[1734980979554,0.053696,93260.0,93259.0,1.8608]
[1734980980442,0.2329,93273.0,93259.0,1.8608]
[1734980980642,0.053694,93264.0,93259.0,1.8608]
[1734980980843,0.2329,93273.0,93259.0,1.8608]
[1734980980844,0.10722768,93272.0,93259.0,1.5]
[1734980981157,0.053696,93260.0,93259.0,1.5]
[1734980981349,0.053697,93258.0,93254.0,0.01416954]
[1734980981550,0.7216,93262.0,93229.0,0.3608]
[1734980981855,0.053712,93232.0,93231.0,0.20490109]
[1734980982049,0.10722768,93257.0,93231.0,0.01454058]
[1734980982249,0.31474052,93262.0,93261.0,0.053696]
[1734980982250,0.00056001,93262.0,93261.0,0.053696]
[1734980982453,0.053689,93272.0,93262.0,0.053695]
[1734980982747,0.16091438,93272.0,93271.0,0.3608]
[1734980983152,0.16091438,93272.0,93271.0,1.8608]
[1734980983957,0.16291438,93272.0,93271.0,1.7858]
[1734980985552,0.16191438,93272.0,93271.0,1.7858]
[1734980985945,0.16191438,93272.0,93271.0,1.5]
[1734980986453,0.16291438,93272.0,93271.0,1.5]
[1734980987359,0.16291438,93272.0,93271.0,1.51481394]
[1734980988058,0.10922538,93272.0,93271.0,1.51481394]
[1734980988352,0.3608,93301.0,93271.0,0.31481394]
[1734980988544,0.414473,93301.0,93293.0,0.053677]
[1734980988749,0.10721388,93296.0,93293.0,0.053677]
[1734980988956,0.053675,93298.0,93295.0,0.3608]
[1734980989155,0.053675,93298.0,93296.0,1.5]
[1734980989460,0.053666,93313.0,93309.0,0.053668]
[1734980989658,0.053666,93313.0,93312.0,0.3608]
[1734980990763,0.16085058,93313.0,93312.0,0.3608]
[1734980991058,0.16085058,93313.0,93312.0,1.8608]
[1734980992363,0.053651,93339.0,93312.0,1.8608]
[1734980992659,0.10716677,93332.0,93327.0,0.13562301]
[1734980993056,0.053651,93339.0,93327.0,0.13562301]
[1734980993361,0.10716677,93336.0,93327.0,0.06162301]
[1734980993561,0.3618,93337.0,93327.0,0.06162301]
[1734980993761,0.10714438,93335.0,93327.0,0.06162301]
[1734980993965,0.053657,93328.0,93327.0,0.06162301]
[1734980994966,0.16080655,93328.0,93324.0,0.3608]
[1734980995165,0.053658,93327.0,93324.0,0.3608]
[1734980995466,0.053658,93326.0,93324.0,0.3608]
[1734980995963,0.16080985,93326.0,93324.0,0.3608]
[1734980996165,0.053658,93326.0,93324.0,0.3608]
[1734980996365,0.10715185,93325.0,93324.0,0.3608]
[1734980997469,0.11015185,93325.0,93324.0,0.3608]
[1734980998263,0.11015185,93325.0,93324.0,0.2868]
[1734980998460,0.053661,93321.0,93320.0,0.01480385]
[1734980998660,0.053665,93315.0,93312.0,0.3608]
[1734980999063,0.10715299,93314.0,93313.0,0.053666]
[1734980999567,0.053653,93335.0,93312.0,0.37554299]
[1734980999869,0.10716562,93333.0,93331.0,0.3608]
[1734981000362,0.3608,93357.0,93331.0,0.3608]
[1734981000363,0.01484986,93363.0,93331.0,0.3608]
[1734981000567,0.053641,93357.0,93351.0,0.49642301]
[1734981000760,0.10714438,93355.0,93351.0,0.49642301]
[1734981000960,0.053636,93365.0,93351.0,0.49642301]
[1734981001467,0.3608,93366.0,93351.0,0.49642301]
[1734981001468,0.10714438,93354.0,93351.0,0.49642301]
[1734981001666,0.053641,93357.0,93351.0,0.49642301]
[1734981001869,0.10711454,93364.0,93351.0,0.49642301]
[1734981002061,0.053642,93355.0,93351.0,0.49642301]
[1734981002471,0.3608,93357.0,93343.0,0.3608]
[1734981002670,0.053648,93344.0,93343.0,0.3608]
[1734981003368,0.053667,93311.0,93310.0,0.13642301]
[1734981003563,0.053668,93309.0,93300.0,0.13562301]
[1734981003767,0.3608,93309.0,93299.0,0.13562301]
[1734981003967,0.053671,93303.0,93299.0,0.13562301]
[1734981004268,0.3608,93322.0,93302.0,0.3608]
[1734981004471,0.3608,93322.0,93312.0,0.13562301]
[1734981004676,0.3608,93322.0,93315.0,0.053664]
[1734981004860,0.3608,93322.0,93316.0,1.5]
[1734981005372,0.10716735,93321.0,93302.0,0.3608]
[1734981005768,0.10716735,93321.0,93310.0,0.13562301]
[1734981006472,0.10716735,93321.0,93310.0,0.49642301]
[1734981007279,0.3608,93341.0,93329.0,0.053656]
[1734981007478,0.3608,93341.0,93330.0,0.13562301]
[1734981007677,0.10716333,93332.0,93330.0,0.13562301]
[1734981007871,0.3608,93341.0,93331.0,1.5]
[1734981008180,0.10714094,93340.0,93326.0,0.3608]
[1734981008375,0.3608,93329.0,93322.0,0.13562301]
[1734981008569,0.3608,93329.0,93319.0,0.3608]
[1734981008770,0.3608,93329.0,93319.0,0.13562301]
[1734981009678,0.10714323,93328.0,93319.0,0.15044577]
[1734981009876,0.10714323,93328.0,93319.0,0.01482276]
[1734981010073,0.10714323,93328.0,93316.0,0.053664]
[1734981010269,0.10714323,93328.0,93311.0,0.4921]
[1734981010473,0.10714323,93328.0,93318.0,0.18928501]
[1734981011074,0.10714323,93328.0,93320.0,1.5]
[1734981011471,0.10714323,93328.0,93320.0,1.553662]
[1734981011680,0.3608,93341.0,93320.0,1.5]
[1734981011979,0.3608,93347.0,93331.0,0.3608]
[1734981013178,0.3608,93347.0,93331.0,0.2868]
[1734981013376,0.10713635,93346.0,93331.0,0.2868]
[1734981014676,0.10713635,93346.0,93331.0,0.30401161]
[1734981015678,0.10713635,93346.0,93345.0,0.053647]
[1734981015869,0.10713635,93346.0,93339.0,0.3608]
[1734981015870,0.2431,93365.0,93358.0,0.053639]
[1734981016080,0.3608,93372.0,93359.0,0.053639]
[1734981016278,0.10713692,93364.0,93360.0,1.5]
[1734981016487,0.3608,93372.0,93360.0,1.5]
[1734981016786,0.10710995,93363.0,93360.0,1.5]
[1734981016976,0.3608,93372.0,93360.0,1.5]
[1734981017486,0.10710995,93362.0,93360.0,1.5]
[1734981017680,0.3608,93364.0,93360.0,1.5]
[1734981017983,0.3608,93364.0,93360.0,1.501]
[1734981018184,0.3608,93364.0,93360.0,0.001]
[1734981018487,0.10710537,93363.0,93360.0,0.001]
[1734981019284,0.10710537,93363.0,93361.0,1.5]
[1734981019885,0.10710537,93363.0,93360.0,0.001]
[1734981020387,0.3608,93364.0,93360.0,0.001]
[1734981020883,0.10710995,93362.0,93342.0,0.3608]
[1734981021184,0.3608,93353.0,93342.0,0.3608]
[1734981021379,0.3608,93353.0,93340.0,0.13722985]
[1734981021579,0.3608,93353.0,93340.0,0.15200324]
[1734981021779,0.34532774,93352.0,93340.0,0.15200324]
[1734981023390,0.34532774,93352.0,93340.0,0.15300324]
[1734981023989,0.10712774,93352.0,93348.0,0.053646]
[1734981024288,0.3608,93364.0,93359.0,0.053639]
[1734981024490,0.3608,93364.0,93354.0,0.13562301]
[1734981024687,0.3608,93375.0,93362.0,0.053637]
[1734981024891,0.3608,93375.0,93363.0,1.5]
[1734981025087,0.10711053,93374.0,93363.0,1.5]
[1734981025280,0.10711053,93374.0,93356.0,0.3608]
[1734981025478,0.10711053,93374.0,93365.0,0.053636]
[1734981026484,0.10711053,93374.0,93372.0,0.053632]
[1734981026683,0.3608,93393.0,93375.0,0.05363]
[1734981026879,0.3608,93393.0,93383.0,0.13562301]
[1734981027390,0.10710135,93392.0,93383.0,0.13562301]
[1734981028296,0.10710135,93392.0,93381.0,0.053626]
[1734981029187,0.11010135,93392.0,93381.0,0.053626]
[1734981030097,0.11010135,93392.0,93380.0,0.13562301]
[1734981030098,0.10810135,93392.0,93380.0,0.13562301]
[1734981030697,0.10810135,93392.0,93380.0,0.15057318]
[1734981031491,0.10710135,93392.0,93380.0,0.15057318]
[1734981032194,0.10710135,93392.0,93381.0,0.053626]
[1734981033294,0.053624,93386.0,93381.0,0.053626]
[1734981033495,0.053621,93391.0,93383.0,0.053625]
[1734981033888,0.10708529,93390.0,93383.0,0.053625]
[1734981034097,0.10708529,93390.0,93376.0,0.13562301]
[1734981034296,0.053624,93386.0,93378.0,0.053628]
[1734981034599,0.053624,93386.0,93380.0,0.053627]
[1734981034799,0.3608,93384.0,93376.0,0.15042924]
[1734981035002,0.053628,93378.0,93376.0,0.15042924]
[1734981035195,0.053628,93378.0,93376.0,0.01480623]
[1734981035400,0.053628,93378.0,93373.0,0.3608]
[1734981035600,0.10708701,93377.0,93373.0,0.3608]
[1734981035991,0.10708701,93377.0,93368.0,0.13562301]
[1734981035992,0.053632,93373.0,93368.0,0.13562301]
[1734981036193,0.053633,93371.0,93368.0,0.13562301]
[1734981036394,0.053633,93371.0,93368.0,0.15049599]
[1734981036596,0.10709447,93370.0,93368.0,0.15049599]
[1734981036898,0.3608,93376.0,93368.0,0.15049599]
[1734981036899,0.41442,93393.0,93387.0,0.053623]
[1734981037087,0.053621,93391.0,93383.0,0.13562301]
[1734981037308,0.16072235,93391.0,93384.0,1.5]
[1734981037589,0.053622,93389.0,93384.0,1.5]
[1734981037994,0.053622,93389.0,93383.0,0.18924801]
[1734981038199,0.053622,93389.0,93378.0,0.3608]
[1734981038389,0.10708071,93388.0,93384.0,0.053624]
[1734981039498,0.10708071,93388.0,93384.0,0.058624]
[1734981039803,0.16070371,93388.0,93384.0,0.058624]
[1734981040101,0.3608,93393.0,93384.0,0.053624]
[1734981040294,0.053624,93386.0,93384.0,0.053624]
[1734981040897,0.10708357,93385.0,93384.0,0.053624]
[1734981042498,0.001,93393.0,93392.0,0.05362]
[1734981042697,0.053618,93397.0,93392.0,0.3608]
[1734981042892,0.053614,93403.0,93399.0,0.053616]
[1734981043298,0.053613,93406.0,93399.0,0.053616]
[1734981043499,0.2455,93413.0,93393.0,1.74484]
[1734981043500,0.6063,93413.0,93393.0,1.74484]
[1734981043701,0.053616,93399.0,93395.0,0.053618]
[1734981043897,0.053619,93396.0,93395.0,0.053618]
[1734981044097,0.053619,93395.0,93393.0,1.480418]
[1734981044305,0.053619,93395.0,93393.0,1.49383686]
[1734981044608,0.10706695,93394.0,93393.0,0.01421886]
[1734981044821,0.05362,93393.0,93392.0,0.3608]
[1734981044995,0.10706695,93394.0,93387.0,0.13562301]
[1734981045198,0.053626,93382.0,93381.0,1.5]
[1734981045400,0.414423,93388.0,93374.0,0.3608]
[1734981045605,0.414423,93388.0,93367.0,0.2495]
[1734981045606,0.053624,93386.0,93380.0,0.053627]
[1734981045804,0.05362,93392.0,93387.0,0.053623]
[1734981046103,0.053621,93391.0,93387.0,0.053623]
[1734981046901,0.10708816,93390.0,93384.0,0.3608]
[1734981047107,0.053617,93399.0,93385.0,0.053624]
[1734981047309,0.053617,93399.0,93393.0,0.3608]
[1734981047501,0.16069599,93399.0,93393.0,0.3608]
[1734981048102,0.16069599,93399.0,93393.0,0.2868]
[1734981049098,0.10707899,93399.0,93393.0,0.2868]
[1734981049305,0.053618,93398.0,93397.0,0.053617]
[1734981049907,0.053619,93394.0,93393.0,0.29990344]
[1734981050104,0.053619,93394.0,93393.0,0.01310344]
[1734981050309,0.3608,93397.0,93375.0,0.3608]
[1734981050515,0.05362,93393.0,93378.0,0.053628]
[1734981050810,0.053627,93381.0,93378.0,0.053628]
[1734981051011,0.053621,93391.0,93375.0,0.3608]
[1734981051207,0.053621,93391.0,93380.0,0.13562301]
[1734981051509,0.053624,93386.0,93380.0,0.18925001]
[1734981052009,0.053625,93384.0,93380.0,0.18925001]
[1734981052209,0.053626,93383.0,93380.0,0.18925001]
[1734981052408,0.053626,93383.0,93381.0,0.053626]
[1734981053111,0.053626,93383.0,93380.0,0.13562301]
[1734981053112,0.053626,93383.0,93380.0,0.11524901]
[1734981054012,0.053629,93376.0,93375.0,0.01355105]
[1734981054211,0.3608,93381.0,93372.0,0.053632]
[1734981054403,0.053631,93374.0,93373.0,0.01500867]
[1734981054604,0.053626,93382.0,93379.0,0.053628]
[1734981054806,0.053627,93380.0,93379.0,0.053628]
[1734981055007,0.10709676,93387.0,93385.0,0.053624]
[1734981055508,0.3608,93389.0,93388.0,0.053623]
[1734981055898,0.3608,93389.0,93388.0,1.553623]
[1734981056104,0.46788243,93389.0,93388.0,1.5]
[1734981058215,0.053623,93388.0,93382.0,0.053626]
[1734981058416,0.053624,93386.0,93382.0,0.053626]
[1734981058802,0.10707956,93385.0,93382.0,0.053626]
[1734981059209,0.16070356,93385.0,93384.0,1.5]
[1734981059610,0.053624,93385.0,93384.0,1.5]
[1734981060013,0.16070815,93385.0,93384.0,1.5]
[1734981061314,0.16070815,93385.0,93384.0,1.51311537]
[1734981063123,0.16070815,93385.0,93384.0,0.01311537]
[1734981063421,0.05363,93376.0,93374.0,0.05363]
[1734981063715,0.053631,93374.0,93373.0,0.00160628]
[1734981064319,0.053631,93374.0,93373.0,1.50160628]
[1734981064522,0.053631,93374.0,93373.0,1.51502899]
[1734981064825,0.16072604,93374.0,93373.0,1.51502899]
[1734981065307,0.319324,93386.0,93382.0,0.053626]
[1734981065511,0.053627,93381.0,93377.0,0.053629]
[1734981065813,0.053627,93381.0,93376.0,0.09028461]
[1734981065814,0.10709676,93381.0,93380.0,0.053627]
[1734981066114,0.053625,93385.0,93381.0,0.053627]
[1734981066517,0.10709045,93385.0,93381.0,0.053627]
[1734981066719,0.053626,93383.0,93381.0,0.053627]
[1734981067519,0.053626,93383.0,93381.0,0.3608]
[1734981068114,0.2657,93399.0,93380.0,0.053627]
[1734981068319,0.053626,93382.0,93381.0,0.001]
[1734981069120,0.053619,93395.0,93376.0,0.09028461]
[1734981069617,0.053627,93380.0,93378.0,0.053628]
[1734981069821,0.053629,93377.0,93376.0,0.09028461]
[1734981070017,0.3608,93384.0,93374.0,0.0008]
[1734981070225,0.05363,93375.0,93373.0,0.01582899]
[1734981070523,0.05363,93375.0,93373.0,0.01502899]
[1734981070817,0.10708472,93374.0,93373.0,0.01502899]
[1734981071022,0.35698472,93374.0,93373.0,0.01502899]
[1734981072422,0.10708472,93374.0,93373.0,0.01502899]
[1734981074419,0.16071572,93374.0,93373.0,0.01502899]
[1734981074622,0.053631,93374.0,93373.0,0.01502899]
[1734981074828,0.16072776,93374.0,93373.0,0.01502899]
[1734981075018,0.10709676,93374.0,93373.0,0.06865999]
[1734981075917,0.16072776,93374.0,93373.0,0.06865999]
[1734981076622,0.053631,93374.0,93373.0,0.06865999]
[1734981077724,0.053631,93374.0,93373.0,0.01502899]
[1734981078828,0.053628,93379.0,93377.0,0.053629]
[1734981080130,0.053628,93379.0,93378.0,1.5]
[1734981081030,0.053631,93374.0,93373.0,0.01502899]
[1734981081527,0.053631,93374.0,93373.0,1.51502899]
[1734981083430,0.16072776,93374.0,93373.0,1.51602899]
[1734981083634,0.053646,93348.0,93347.0,0.19161501]
[1734981084237,0.3608,93357.0,93347.0,0.19161501]
[1734981084238,0.3608,93357.0,93349.0,0.053645]
[1734981084529,0.10709676,93356.0,93349.0,0.053645]
[1734981084833,0.10709676,93356.0,93347.0,1.80198275]
[1734981085024,0.10709676,93356.0,93348.0,0.053646]
[1734981085930,0.10709676,93356.0,93347.0,1.88092313]
[1734981086233,0.10709676,93356.0,93347.0,1.88008313]
[1734981086423,0.3608,93348.0,93347.0,1.51328313]
[1734981087026,0.46792659,93348.0,93347.0,1.51328313]
[1734981087533,0.46792659,93348.0,93347.0,1.51828313]
[1734981087728,0.10712659,93348.0,93347.0,1.51828313]
[1734981088126,0.001,93348.0,93347.0,0.01328313]
[1734981088326,0.001,93348.0,93340.0,0.09189145]
[1734981088327,0.10812659,93348.0,93340.0,0.09189145]
[1734981088530,0.10812659,93348.0,93340.0,0.10511074]
[1734981088833,0.001,93348.0,93340.0,0.10511074]
[1734981089024,0.10712659,93347.0,93340.0,0.10511074]
[1734981089226,0.10712659,93347.0,93346.0,1.5]
[1734981089728,0.10712659,93347.0,93340.0,0.10511074]
[1734981089925,0.10712659,93347.0,93340.0,0.10611074]
[1734981090134,0.3608,93347.0,93340.0,0.01582613]
[1734981090335,0.10712774,93346.0,93341.0,1.5]
[1734981095022,0.10712774,93346.0,93340.0,0.00160684]
[1734981095534,0.10712774,93346.0,93341.0,1.5]
[1734981098137,0.10712774,93346.0,93340.0,0.00160684]
[1734981099241,0.10712774,93346.0,93341.0,1.5]
[1734981100239,0.10712774,93346.0,93340.0,0.00160684]
[1734981100437,0.10712774,93346.0,93322.0,0.3608]
[1734981100637,0.3608,93336.0,93323.0,1.5]
[1734981101137,0.3608,93336.0,93331.0,0.053655]
[1734981101336,0.10714725,93335.0,93331.0,0.053655]
[1734981101533,0.10714725,93335.0,93323.0,1.5]
[1734981101732,0.053656,93331.0,93325.0,0.053659]
[1734981101933,0.053656,93331.0,93323.0,1.5]
[1734981101934,0.053656,93331.0,93323.0,1.5008]
[1734981102142,0.414453,93336.0,93323.0,1.5]
[1734981102340,0.3608,93336.0,93329.0,0.053656]
[1734981102642,0.053655,93331.0,93329.0,0.053656]
[1734981102839,0.053658,93327.0,93324.0,0.053659]
[1734981103143,0.3608,93336.0,93323.0,1.5008]
[1734981103144,0.053659,93324.0,93323.0,1.5008]
[1734981103438,0.053659,93324.0,93323.0,1.502]
[1734981103843,0.053659,93324.0,93323.0,0.002]
[1734981104143,0.053659,93324.0,93322.0,0.3743566]
[1734981104341,0.053659,93324.0,93323.0,0.05366]
[1734981104847,0.053659,93324.0,93323.0,1.53366]
[1734981105437,0.053659,93324.0,93323.0,1.48]
[1734981105739,0.053659,93324.0,93322.0,0.3743566]
[1734981105740,0.10715414,93324.0,93322.0,0.0135566]
[1734981105938,0.05366,93323.0,93312.0,0.414466]
[1734981106139,0.053666,93313.0,93312.0,0.414466]
[1734981106338,0.053666,93313.0,93312.0,1.894466]
[1734981106533,0.053666,93313.0,93312.0,1.9072309]
[1734981106734,0.053666,93313.0,93312.0,1.4927649]
[1734981107132,0.053666,93313.0,93312.0,0.0127649]
[1734981107343,0.053666,93312.0,93310.0,0.3608]
[1734981107546,0.3608,93327.0,93310.0,0.3608]
[1734981107746,0.10716677,93326.0,93312.0,0.002]
[1734981107941,0.053665,93315.0,93313.0,0.053666]
[1734981108246,0.053665,93314.0,93313.0,0.053666]
[1734981109440,0.053667,93311.0,93310.0,0.37623619]
[1734981109843,0.053667,93311.0,93310.0,0.42990319]
[1734981110046,0.053667,93311.0,93310.0,0.42690319]
[1734981111046,0.053667,93311.0,93310.0,0.42990319]
[1734981111549,0.053667,93311.0,93310.0,0.37623619]
[1734981112440,0.053667,93311.0,93310.0,0.01543619]
[1734981112847,0.053667,93311.0,93310.0,0.37623619]
[1734981113749,0.16083607,93311.0,93310.0,0.01543619]
[1734981115347,0.10716907,93311.0,93310.0,0.01543619]
[1734981115547,0.3608,93336.0,93335.0,0.053653]
[1734981115738,0.414451,93340.0,93310.0,0.31543619]
[1734981115739,0.053652,93338.0,93337.0,0.053651]
[1734981115938,0.053652,93338.0,93337.0,1.533651]
[1734981118146,0.053652,93338.0,93337.0,1.459651]
[1734981119053,0.053652,93338.0,93337.0,1.52554292]
[1734981119252,0.3608,93340.0,93339.0,0.053651]
[1734981120255,0.41445,93340.0,93339.0,0.053651]
[1734981120754,0.3608,93340.0,93339.0,1.513651]
[1734981121155,0.3608,93355.0,93339.0,0.053651]
[1734981121358,0.09028461,93420.0,93362.0,0.053638]
[1734981121359,0.414437,93363.0,93362.0,0.053638]
[1734981121551,0.414437,93363.0,93362.0,1.513638]
[1734981121852,0.52157277,93363.0,93362.0,1.513638]
[1734981122246,0.46793577,93363.0,93362.0,1.513638]
[1734981122551,0.3608,93374.0,93373.0,0.053631]
[1734981123256,0.3608,93374.0,93372.0,0.053632]
[1734981123649,0.3608,93385.0,93368.0,0.3608]
[1734981123650,0.053627,93381.0,93368.0,0.3608]
[1734981123849,0.2491,93387.0,93368.0,0.3608]
[1734981123850,0.302723,93387.0,93383.0,0.053625]
[1734981124159,0.10709676,93384.0,93383.0,0.053625]
[1734981124360,0.3608,93392.0,93378.0,0.053628]
[1734981124548,0.053626,93382.0,93368.0,0.01233045]
[1734981124749,0.053631,93374.0,93373.0,0.005]
[1734981124951,0.053631,93374.0,93362.0,0.01240871]
[1734981124952,0.053631,93373.0,93362.0,0.01240871]
[1734981125162,0.053638,93361.0,93355.0,0.053641]
[1734981125352,0.053638,93361.0,93354.0,0.3608]
[1734981125545,0.10709504,93360.0,93354.0,0.37316151]
[1734981125751,0.10459241,93360.0,93359.0,0.053639]
[1734981126046,0.3608,93375.0,93354.0,0.37316151]
[1734981126047,0.053634,93368.0,93354.0,0.37316151]
[1734981126247,0.053634,93368.0,93366.0,0.053635]
[1734981127064,0.053634,93368.0,93330.0,0.20420773]
[1734981127065,0.053642,93355.0,93330.0,0.20420773]
[1734981127253,0.775246,93348.0,93345.0,0.01260995]
[1734981127563,0.053647,93345.0,93340.0,0.05365]
[1734981127747,0.053647,93345.0,93338.0,0.09028461]
[1734981127748,0.053647,93345.0,93339.0,0.3608]
[1734981127953,0.36136001,93348.0,93339.0,0.3608]
[1734981128157,0.053638,93362.0,93347.0,0.3608]
[1734981128361,0.053638,93362.0,93358.0,0.41444]
[1734981128754,0.053638,93362.0,93359.0,1.46]
[1734981128964,0.053639,93359.0,93358.0,0.3608]
[1734981130465,0.04826842,93366.0,93364.0,0.053636]
[1734981130663,0.04826842,93366.0,93358.0,0.37334593]
[1734981130664,0.3608,93366.0,93358.0,0.37334593]
[1734981130865,0.16075297,93359.0,93358.0,0.01254593]
[1734981131065,0.5044,93365.0,93345.0,0.053647]
[1734981131362,0.053643,93352.0,93350.0,0.053644]
[1734981132161,0.053631,93374.0,93350.0,0.053644]
[1734981132162,0.3608,93379.0,93367.0,0.053634]
[1734981132363,0.053637,93363.0,93361.0,0.414438]
[1734981132568,0.10712258,93365.0,93350.0,0.0125037]
[1734981132864,0.053644,93351.0,93349.0,0.053645]
[1734981133970,0.3608,93363.0,93361.0,0.053638]
[1734981134268,0.053635,93367.0,93365.0,0.053635]
[1734981134569,0.053634,93369.0,93365.0,0.053636]
[1734981134772,0.10712372,93377.0,93365.0,0.053636]
[1734981135074,0.053634,93368.0,93367.0,0.09028461]
[1734981135368,0.10710422,93377.0,93359.0,0.3608]
[1734981135567,0.053639,93360.0,93359.0,0.3608]
[1734981135972,0.05364,93358.0,93355.0,0.053641]
[1734981136170,0.053636,93364.0,93356.0,1.46]
[1734981136468,0.053643,93352.0,93350.0,0.09028461]
[1734981136663,0.053649,93342.0,93340.0,0.09028461]
[1734981136860,0.053649,93342.0,93341.0,1.46]
[1734981138071,0.053649,93342.0,93341.0,1.461]
[1734981138265,0.053649,93342.0,93341.0,0.001]
[1734981138864,0.2538,93362.0,93341.0,0.001]
[1734981139062,0.053645,93350.0,93348.0,0.053645]
[1734981139971,0.053649,93343.0,93342.0,0.053649]
[1734981140173,0.05365,93340.0,93339.0,0.01396025]
[1734981140876,0.05365,93340.0,93339.0,0.00160684]
[1734981141180,0.46792487,93340.0,93320.0,0.09028461]
[1734981141367,0.46792487,93340.0,93320.0,0.09189193]
[1734981141368,0.053661,93321.0,93320.0,0.09189193]
[1734981141676,0.053661,93321.0,93320.0,0.00160732]
[1734981142381,0.053661,93321.0,93320.0,0.01426575]
[1734981142577,0.053661,93321.0,93320.0,0.00160732]
[1734981143175,0.0059236,93336.0,93335.0,0.053651]
[1734981143475,0.3608,93359.0,93335.0,0.053651]
[1734981143476,0.053645,93346.0,93341.0,0.053648]
[1734981143774,0.053642,93352.0,93343.0,0.3608]
[1734981143962,0.053642,93351.0,93349.0,0.053643]
[1734981144465,0.10712659,93350.0,93343.0,0.414445]
[1734981144663,0.053644,93347.0,93343.0,0.414445]
[1734981145070,0.053644,93347.0,93344.0,1.39]
[1734981145270,0.053644,93347.0,93346.0,0.053644]
[1734981145466,0.053644,93345.0,93344.0,0.00096]
[1734981145672,0.053644,93345.0,93343.0,0.3608]
[1734981145879,0.053644,93345.0,93344.0,1.39]
[1734981146474,0.10713061,93345.0,93344.0,1.39]
[1734981146878,0.053644,93345.0,93344.0,1.39]
[1734981147875,0.16077403,93345.0,93344.0,1.39]
[1734981148073,0.16077403,93345.0,93343.0,0.37322611]
[1734981148276,0.053652,93331.0,93323.0,0.3608]
[1734981148476,0.053656,93324.0,93323.0,0.3608]
[1734981148981,0.16078603,93324.0,93323.0,0.3608]
[1734981149986,0.16078603,93324.0,93323.0,1.7508]
[1734981150481,0.16078603,93324.0,93323.0,1.7518]
[1734981151385,0.053639,93350.0,93323.0,1.7518]
[1734981151386,0.053644,93342.0,93331.0,0.05365]
[1734981151568,0.053648,93334.0,93332.0,0.414449]
[1734981152676,0.2628,93347.0,93332.0,0.3608]
[1734981152879,0.053644,93342.0,93341.0,0.3608]
[1734981154274,0.16077748,93342.0,93332.0,0.3608]
[1734981154474,0.053649,93333.0,93332.0,0.3608]
[1734981155690,0.053649,93333.0,93332.0,0.37300524]
[1734981156372,0.16079281,93333.0,93332.0,0.37300524]
[1734981156771,0.16079281,93333.0,93332.0,0.37500524]
[1734981156983,0.16079281,93333.0,93332.0,0.01420524]
[1734981157393,0.16079281,93333.0,93332.0,0.01220524]
[1734981157582,0.16079281,93333.0,93332.0,0.002]
[1734981159583,0.16079281,93333.0,93332.0,0.0121307]
[1734981159888,0.16079281,93333.0,93332.0,0.001]
[1734981162278,0.16079281,93333.0,93332.0,1.391]
[1734981162486,0.16079281,93333.0,93332.0,1.40335946]
[1734981162695,0.16079281,93333.0,93332.0,0.01335946]
[1734981165191,0.2646,93357.0,93332.0,0.01335946]
[1734981165192,0.053633,93361.0,93358.0,0.053634]
[1734981165392,0.053634,93359.0,93356.0,0.053636]
[1734981165693,0.053633,93360.0,93357.0,1.443635]
[1734981166090,0.10714381,93359.0,93357.0,0.053635]
[1734981166288,0.16077781,93359.0,93357.0,0.053635]
[1734981167281,0.16077781,93359.0,93358.0,0.053634]
[1734981167981,0.37331728,93380.0,93358.0,0.053634]
[1734981167982,0.3608,93380.0,93369.0,0.053628]
[1734981168295,0.053627,93371.0,93370.0,0.09030945]